Cogmind - Beta 9.2 @@@ ROGUE MODE // 2019.11.23 @ 22:19:02 Player: Fleshy Vegetable Bird Result: Destroyed by S-27 Virus with Autogun Performance ------------- Evolutions (3) 1500 Regions Visited (8) 1600 Robots Destroyed (108) 540 Value Destroyed (4073) 4073 Prototype IDs (9) 180 Alien Tech Used (0) 0 Bonus (2210) 2210 TOTAL SCORE: 10103 Bonus ------- High Alert Combat Kills 744 Follower Combat Kills 66 Entered Garrisons 400 Used RIF Installer 1000 Cogmind --------- Core Integrity 0/700 Matter 245/300 Energy 99/100 System Corruption 13% Temperature Cool (0) Movement Core (50) Location -7/Factory Parts ------- > --- POWER (1) -------- (None) > --- PROPULSION (3) --- (None) > --- UTILITY (6) ------ (None) > --- WEAPON (3) ------- (None) > --- INVENTORY (4) ---- Relay Coupler [Grunt] (31) Relay Coupler [Grunt] (30) Relay Coupler [Sentry] (26) Cooled Pulse Rifle Peak State ------------ > --- POWER ------------ Light Nuclear Core > --- PROPULSION ------- Xenon Bombardment Thruster Xenon Bombardment Thruster Xenon Bombardment Thruster > --- UTILITY ---------- Large Storage Unit Large Storage Unit Advanced Weight Redist. System Targeting Computer Core Analyzer Relay Coupler [Grunt] > --- WEAPON ----------- Shock Rifle Compact Ion Cannon Datajack > --- INVENTORY -------- Improved Heat Sink Advanced Sensor Array Particle Charger Relay Coupler [NC] Relay Coupler [Swarmer] Relay Coupler [Grunt] Relay Coupler [Grunt] Relay Coupler [Grunt] Relay Coupler [Grunt] Relay Coupler [Sentry] Relay Coupler [Sentry] Relay Coupler [Sentry] Drone Bay Cooled Pulse Rifle Improved EM Pulse Cannon [Rating: 43] Favorites ----------- Power Improved Ion Engine Engine Improved Ion Engine Power Core Light Nuclear Core Propulsion Armored Treads Treads Armored Treads Leg Aluminum Leg Wheel Compact Wheel Flight Unit Xenon Bombardment Thruster Utility Large Storage Unit Device Improved Heat Sink Storage Large Storage Unit Processor Targeting Computer Hackware Relay Coupler [Grunt] Protection Medium Armor Plating Weapon Compact Ion Cannon Energy Gun Beam Rifle Energy Cannon Compact Ion Cannon Ballistic Gun Heavy Assault Rifle Launcher Precision Rocket Launcher Special Weapon Mining Laser Special Melee Weapon Datajack Build | -11 -10 -9 -9 -9 -9 -7 -7 -7 ------- Run | Scr Mat Mat Sto Gar Rec Fac Gar Fac Slots Evolved 6 | . . 2 . . . 4 . . Power . | . . . . . . . . . Propulsion 1 | . . . . . . 1 . . Utility 4 | . . 1 . . . 3 . . Weapon 1 | . . 1 . . . . . . Parts Attached 97 | 7 5 28 10 16 1 4 16 10 Power 8 | 1 1 1 1 2 . . 2 . Engine 6 | 1 1 1 1 2 . . . . Core 2 | . . . . . . . 2 . Reactor . | . . . . . . . . . Propulsion 20 | 2 1 8 . 2 . . 4 3 Treads 8 | . . 6 . 2 . . . . Leg 4 | . . . . . . . 4 . Wheel 4 | 2 1 1 . . . . . . Hover . | . . . . . . . . . Flight 4 | . . 1 . . . . . 3 Utility 24 | 2 2 6 1 4 . 4 1 4 Device 6 | . . . 1 2 . 2 . 1 Storage 8 | 2 2 2 . 1 . . . 1 Processor 2 | . . . . . . 1 . 1 Hackware 2 | . . . . . . . 1 1 Protection 6 | . . 4 . 1 . 1 . . Artifact . | . . . . . . . . . Weapon 45 | 2 1 13 8 8 1 . 9 3 Energy Gun 12 | 2 . 5 2 . . . 2 1 Energy Cannon 14 | . . 4 2 4 1 . 2 1 Ballistic Gun 6 | . 1 2 2 . . . 1 . Ballistic Cannon . | . . . . . . . . . Launcher 8 | . . 1 1 3 . . 3 . Special Weapon 2 | . . 1 1 . . . . . Impact Weapon . | . . . . . . . . . Slashing Weapon . | . . . . . . . . . Piercing Weapon . | . . . . . . . . . Special Melee Weapon 3 | . . . . 1 . . 1 1 Unidentified Prototypes 4 | . . 1 2 . . . . 1 Parts Lost 48 | . 4 8 9 3 . 6 9 9 Power 7 | . 1 . 2 1 . . 2 1 Propulsion 9 | . 1 1 1 1 . 2 1 2 Utility 10 | . . 2 . 1 . 3 . 4 Weapon 22 | . 2 5 6 . . 1 6 2 Highest Loss Streak 9 | . 3 3 5 1 . 3 3 9 Average Slot Usage (%) 92 | . 84 97 97 99 100 79 72 88 Engine 8 | . 11 11 10 10 11 7 . . Treads 14 | . . 13 21 22 22 12 . . Leg 1 | . . . . . . . 11 6 Wheel 3 | . 25 8 . . . . . . Device 6 | . . . 9 9 11 12 7 9 Storage 20 | . 28 22 22 22 22 15 15 14 Processor 1 | . . . . . . 2 7 10 Hackware 1 | . . . . . . . 6 5 Protection 3 | . . 9 1 1 . 4 . . Energy Gun 5 | . 8 12 7 . . . 4 6 Energy Cannon 18 | . . 14 19 28 31 22 6 6 Ballistic Gun 2 | . 10 3 4 . . . 2 . Launcher 1 | . . . . 3 . . 1 . Naked Turns 2 | . . . . . . . . 2 Heaviest Build 61 | 15 28 56 56 61 52 60 47 46 Greatest Support 40 | 20 26 40 40 40 40 40 39 39 Greatest Overweight (x) 14 | 1 1 3 2 1 1 4 14 5 Average Overweight (x) 1 | . . 1 1 1 1 1 1 1 Largest Inventory Capacity 16 | 8 14 16 16 16 16 16 16 16 Average Capacity 15 | 6 9 15 16 16 16 16 16 15 Most Carried 16 | 5 7 16 16 16 16 16 16 16 Average Carried 13 | 3 5 13 15 13 16 15 14 14 Final Capacity 16 | 8 14 16 16 16 16 16 16 4 Final Carried 16 | 5 7 16 15 16 16 14 13 4 Class Distribution -------------------- 30% | Gunner 20% | Tank 20% | Bothacker-Mutant 19% | Mutant 6% | Bothacker-Gunner Dominant Class ---------------- Mutant | -10/Materials Tank | -9/Materials Gunner | -9/Storage Gunner | -9/Garrison Bothacker-Gunner | -9/Recycling Bothacker-Tank | -7/Factory Bothacker-Mutant | -7/Garrison Bothacker-Mutant | -7/Factory Resources | -11 -10 -9 -9 -9 -9 -7 -7 -7 ----------- Run | Scr Mat Mat Sto Gar Rec Fac Gar Fac Matter Collected 1647 | 270 80 456 163 355 10 32 281 . Remotely . | . . . . . . . . . Salvage Created 4748 | 148 367 1291 1087 1118 12 143 582 . Parts 240 | 11 25 79 49 38 . 9 29 . Haulers Intercepted 5 | . . 3 2 . . . . . Recyclers Shooed 4 | . 2 1 . . 1 . . . Parts Field Recycled . | . . . . . . . . . Retrieved Matter . | . . . . . . . . . Parts Self-Destructed . | . . . . . . . . . Prevented . | . . . . . . . . . Kills | -11 -10 -9 -9 -9 -9 -7 -7 -7 ------- Run | Scr Mat Mat Sto Gar Rec Fac Gar Fac Combat Hostiles Destroyed 91 | . 8 24 17 15 1 6 20 . Melee 1 | . . . . . . 1 . . Guns 25 | . 8 8 4 . . . 5 . Cannons 40 | . . 10 13 7 1 5 4 . AOE 23 | . . 4 . 8 . . 11 . Classes Destroyed 13 | 2 3 5 1 . 1 1 . . Tunneler 3 | 3 . . . . . . . . Hauler 5 | . . 3 2 . . . . . Recycler 4 | 1 1 1 1 . . . . . Mechanic 1 | . . 1 . . . . . . Operator 1 | . . . 1 . . . . . Drone 1 | . . . . . 1 . . . Watcher 3 | . 1 2 . . . . . . Swarmer 19 | . 3 4 . . . 5 7 . Grunt 51 | . 5 12 10 11 . . 13 . Brawler 3 | . . 1 2 . . . . . Duelist 1 | . . 1 . . . . . . Sentry 15 | . . 6 5 4 . . . . Hunter 1 | . . . . . . 1 . . Best Kill Streak 6 | 4 4 6 4 6 1 3 6 . Combat Bots Only 6 | . 4 5 4 6 1 3 6 . Max Kills in Single Turn 3 | 1 1 3 1 2 1 1 2 . Gunslinging 1 | . . . . . . . 1 . Exploded 2 | . . 2 . 2 . . 2 . Melee 1 | . . . . . . 1 . . Uniques/NPCs Destroyed . | . . . . . . . . . Combat | -11 -10 -9 -9 -9 -9 -7 -7 -7 -------- Run | Scr Mat Mat Sto Gar Rec Fac Gar Fac Damage Taken 6028 | 3 367 1266 1239 883 . 673 1221 376 Core 1100 | . 47 123 145 80 . 175 376 154 Absorbed by Shields . | . . . . . . . . . Core Remaining (%) 64 | 100 81 . . . 13 . . . Volleys Fired 288 | 13 47 82 47 50 6 10 33 . Largest 3 | 2 2 3 3 3 3 3 3 . Hottest 270 | 100 100 176 213 270 270 270 180 . Shots Fired 643 | 26 61 204 126 129 17 30 50 . Gun 263 | 26 61 104 47 . . . 25 . Cannon 354 | . . 94 78 119 17 30 16 . Launcher 25 | . . 6 . 10 . . 9 . Special 1 | . . . 1 . . . . . Kinetic 129 | . 37 52 28 . . . 12 . Thermal 368 | 26 24 100 36 119 17 30 16 . Explosive 25 | . . 6 . 10 . . 9 . Electromagnetic 121 | . . 46 62 . . . 13 . Robot Hit Streak 40 | 6 7 15 19 40 6 4 8 . Robot Miss Streak 8 | 2 5 6 2 3 8 7 3 . Penetration Max . | . . . . . . . . . Secondary Targets 2 | . 1 . . . . . 1 . Max Gunslinging Chain 1 | . 1 . . . . . 1 . Shots Hit Robots 411 | 18 35 127 75 101 3 14 36 2 Core Hits 175 | 5 20 49 25 38 1 6 31 . Critical Hits 7 | . 1 2 2 2 . . . . Critical Kills 4 | . 1 2 1 . . . . . Critical Parts Destroyed 2 | . . . . 2 . . . . Melee Attacks 10 | . . . . 5 . . 1 4 Impact . | . . . . . . . . . Slashing . | . . . . . . . . . Piercing . | . . . . . . . . . Sneak Attacks 5 | . . . . 5 . . . . Combat Hostiles . | . . . . . . . . . Follow-up Attacks . | . . . . . . . . . Damage Inflicted 10722 | 206 354 2669 1591 3457 162 329 1954 . Guns 2195 | 199 354 948 422 . . . 272 . Cannons 5494 | . . 1104 1125 2530 162 328 245 . Explosions 3025 | . . 617 44 927 . . 1437 . Melee . | . . . . . . . . . Ramming 8 | 7 . . . . . 1 . . Kinetic 893 | . 195 325 214 . . . 159 . Thermal 5275 | 199 159 1111 433 2530 162 328 353 . Explosive 2720 | . . 464 . 927 . . 1329 . Electromagnetic 1826 | . . 769 944 . . . 113 . Impact . | . . . . . . . . . Slashing . | . . . . . . . . . Piercing . | . . . . . . . . . Highest Corruption 13 | . . 1 3 3 3 . . 13 Average Corruption 2 | . . 1 1 3 3 . . 11 Corruption Purged . | . . . . . . . . . Effects 55 | . . 5 12 31 6 . . 1 Message Errors 17 | . . 4 4 7 2 . . . Matter Fused 10 | . . . 1 8 1 . . . Heat Flow Errors 4 | . . . . 3 1 . . . Energy Discharges 7 | . . . 3 4 . . . . Data Loss (minor) 9 | . . 1 2 3 2 . . 1 Targeting Errors 3 | . . . 1 2 . . . . Weapon Failures 5 | . . . 1 4 . . . . Overload Shots . | . . . . . . . . . Overflow Damage 435 | . . 53 44 171 2 2 163 . Projectiles 144 | . . . 44 96 2 2 . . Explosions 291 | . . 53 . 75 . . 163 . Melee . | . . . . . . . . . Knockbacks . | . . . . . . . . . Impact . | . . . . . . . . . Kinetic . | . . . . . . . . . Secondary . | . . . . . . . . . Self-Inflicted Damage 286 | 3 . 88 . . . . 195 . Shots 6 | . . 2 . . . . 4 . Rammed 2 | 1 . . 1 . . . . . Targets Rammed 3 | 1 . . 1 . . 1 . . Kicked . | . . . . . . . . . Crushed 1 | . . . . . . 1 . . Highest Temperature 582 | 311 321 383 304 494 386 582 288 . Average Temperature 145 | 127 107 147 89 164 135 237 122 . Received Heat Transfer 1893 | . 159 423 507 336 . 72 342 54 Effects 34 | 2 . 6 . 15 . 11 . . Shutdowns 4 | . . . . 1 . 3 . . Energy Bleed 1 | . . . . 1 . . . . Interference 19 | 2 . 5 . 11 . 1 . . Matter Decay 5 | . . . . 2 . 3 . . Short Circuit 2 | . . 1 . . . 1 . . Damage (minor) 1 | . . . . . . 1 . . Damage (major) 1 | . . . . . . 1 . . Damage (core) 1 | . . . . . . 1 . . Siege Activations . | . . . . . . . . . Robots Corrupted 2 | . . 2 . . . . . . Combat Hostiles 2 | . . 2 . . . . . . Parts Fried 7 | . . 4 3 . . . . . Impact Corruptions . | . . . . . . . . . Robots Melted 1 | . . . . 1 . . . . Combat Hostiles . | . . . . . . . . . Parts Melted 7 | . . 1 . 5 1 . . . Heat Transferred 8340 | 592 481 2259 555 3404 222 444 383 . Parts Sabotaged . | . . . . . . . . . Parts Stolen . | . . . . . . . . . Parts Stripped . | . . . . . . . . . Power Chain Reactions 4 | . . 2 1 . . . 1 . Missiles Intercepted . | . . . . . . . . . Alert | -11 -10 -9 -9 -9 -9 -7 -7 -7 ------- Run | Scr Mat Mat Sto Gar Rec Fac Gar Fac Peak Influence 1214 | 20 219 414 521 922 590 1157 1214 667 Average Influence 542 | 6 137 282 265 716 449 1091 1060 638 Maximum Alert Level 4 | . 1 2 2 3 2 4 4 2 Low Security (%) 13 | 100 62 22 21 . . . . . Level 1 32 | . 37 71 68 8 4 . . . Level 2 20 | . . 6 10 28 95 . . 100 Level 3 23 | . . . . 62 . 57 38 . Level 4 10 | . . . . . . 42 61 . Level 5 . | . . . . . . . . . High Security . | . . . . . . . . . Max Security . | . . . . . . . . . Squads Dispatched 11 | . 1 3 4 . . 3 . . Investigation 3 | . 1 . 2 . . . . . Extermination . | . . . . . . . . . Reinforcement 4 | . . 3 1 . . . . . Assault . | . . . . . . . . . Garrison 4 | . . . 1 . . 3 . . Intercept . | . . . . . . . . . Construction Impeded . | . . . . . . . . . Haulers Reinforced . | . . . . . . . . . Stealth | -11 -10 -9 -9 -9 -9 -7 -7 -7 --------- Run | Scr Mat Mat Sto Gar Rec Fac Gar Fac Distress Signals 7 | . 1 2 4 . . . . . Communications Jammed . | . . . . . . . . . Distress Signals . | . . . . . . . . . Times Spotted 157 | . 11 40 36 27 8 9 21 5 Peak Tracking Total 8 | . 3 7 5 6 3 3 8 5 Tactical Retreats 14 | . . . 3 8 . 1 2 . Traps | -11 -10 -9 -9 -9 -9 -7 -7 -7 ------- Run | Scr Mat Mat Sto Gar Rec Fac Gar Fac Traps Triggered 16 | . 1 . 2 9 . . 3 1 Indirectly . | . . . . . . . . . Trap Hack Attempts 6 | . . . . . . . 6 . Triggered . | . . . . . . . . . Disarmed . | . . . . . . . . . Reprogrammed 2 | . . . . . . . 2 . Reused . | . . . . . . . . . Traps Extracted . | . . . . . . . . . Installed . | . . . . . . . . . Triggered . | . . . . . . . . . Machines | -11 -10 -9 -9 -9 -9 -7 -7 -7 ---------- Run | Scr Mat Mat Sto Gar Rec Fac Gar Fac Machines Disabled 12 | . . 5 1 5 . . 1 . Max in Single Turn 2 | . . 2 1 2 . . 1 . Garrison Relay 3 | . . . . 2 . . 1 . Machines Sabotaged . | . . . . . . . . . Garrisons Compromised . | . . . . . . . . . Overloaded Fab Kills . | . . . . . . . . . Fab Network Shutdowns . | . . . . . . . . . Hacking | -11 -10 -9 -9 -9 -9 -7 -7 -7 --------- Run | Scr Mat Mat Sto Gar Rec Fac Gar Fac Machines Accessed 24 | . 4 6 5 . 7 2 . . Terminals 16 | . 4 4 4 . 4 . . . Fabricators 1 | . . . . . . 1 . . Repair Stations . | . . . . . . . . . Recycling Units 3 | . . . . . 3 . . . Scanalyzers 2 | . . 2 . . . . . . Garrison Access 2 | . . . 1 . . 1 . . Total Hacks 79 | . 17 21 19 . 19 3 . . Successful 44 | . 10 14 10 . 8 2 . . Failed 35 | . 7 7 9 . 11 1 . . Catastrophic 4 | . . 1 1 . 1 1 . . Database Lockouts . | . . . . . . . . . Manual 57 | . 14 15 14 . 14 . . . Terminals 67 | . 17 16 18 . 16 . . . Fabricators 2 | . . . . . . 2 . . Repair Stations . | . . . . . . . . . Recycling Units 3 | . . . . . 3 . . . Scanalyzers 5 | . . 5 . . . . . . Garrison Access 2 | . . . 1 . . 1 . . Terminal Hacks 16 | . 4 4 4 . 4 . . . Part Schematic 1 | . . 1 . . . . . . Prototype ID Bank 3 | . 1 . 1 . 1 . . . Open Door 2 | . . . 2 . . . . . Level Access Points 1 | . . . . . 1 . . . Terminal Index 2 | . 1 1 . . . . . . Unreport Threat 2 | . . . . . 2 . . . Recall Reinforcements 3 | . 1 1 1 . . . . . Registered Components 1 | . . 1 . . . . . . Zone Layout 1 | . 1 . . . . . . . Fabricator Hacks 1 | . . . . . . 1 . . Load Schematic 1 | . . . . . . 1 . . Repair Station Hacks . | . . . . . . . . . Recycling Unit Hacks . | . . . . . . . . . Scanalyzer 5 | . . 5 . . . . . . Insert Component 2 | . . 2 . . . . . . Analyze 3 | . . 3 . . . . . . Garrison Access Hacks 2 | . . . 1 . . 1 . . Unlock Access 2 | . . . 1 . . 1 . . Unauthorized Hacks 47 | . 13 12 12 . 10 . . . Terminals 17 | . 6 5 5 . 1 . . . Track 4 | . 1 1 2 . . . . . Botnet 10 | . 4 3 2 . 1 . . . Operators 3 | . 1 1 1 . . . . . Fabricators . | . . . . . . . . . Repair Stations . | . . . . . . . . . Recycling Units 3 | . . . . . 3 . . . Tunnel 3 | . . . . . 3 . . . Scanalyzers . | . . . . . . . . . Garrison Access . | . . . . . . . . . Data Cores Recovered . | . . . . . . . . . Used . | . . . . . . . . . Hacking Detections 19 | . 4 5 5 . 4 1 . . Full Trace Events 2 | . . . 2 . . . . . Feedback Events . | . . . . . . . . . Feedback Blocked . | . . . . . . . . . Robot Schematics Acquired . | . . . . . . . . . Robots Built . | . . . . . . . . . Matter . | . . . . . . . . . Time . | . . . . . . . . . Total Robot Build Rating . | . . . . . . . . . Part Schematics Acquired 3 | . . 3 . . . . . . Parts Built . | . . . . . . . . . Matter . | . . . . . . . . . Time . | . . . . . . . . . Total Part Build Rating . | . . . . . . . . . Parts Repaired . | . . . . . . . . . Time . | . . . . . . . . . Parts Recycled . | . . . . . . . . . Recycled Matter . | . . . . . . . . . Retrieved Matter . | . . . . . . . . . Retrieved Components . | . . . . . . . . . Parts Scanalyzed 2 | . . 2 . . . . . . Part Schematics Acquired 2 | . . 2 . . . . . . Parts Damaged . | . . . . . . . . . Bothacking | -11 -10 -9 -9 -9 -9 -7 -7 -7 ------------ Run | Scr Mat Mat Sto Gar Rec Fac Gar Fac Used RIF Installer 2 | . . . . 1 . . 1 . Coupler Efficiency 1 | . . . . . . . 1 . Robots Hacked 3 | . . . . . . . 1 2 Non-combat 2 | . . . . . . . . 2 Combat 1 | . . . . . . . 1 . Robot Hacks Applied 3 | . . . . . . . 1 2 map_route 2 | . . . . . . . . 2 formatsys_high 1 | . . . . . . . 1 . Relay Couplers Released 13 | . . . . 8 . . 5 . Machine Destruction 13 | . . . . 8 . . 5 . Attached 2 | . . . . . . . 1 1 Robots Rewired 4 | . . . . 4 . . . . Allies Hacked . | . . . . . . . . . Hacks Repelled . | . . . . . . . . . Allies | -11 -10 -9 -9 -9 -9 -7 -7 -7 -------- Run | Scr Mat Mat Sto Gar Rec Fac Gar Fac Total Allies 5 | . . . . 4 . . 1 . Largest Group 3 | . . . . 3 2 . 1 . Highest-Rated Group 28 | . . . . 28 18 . 16 . Highest-Rated Ally 16 | . . . . 10 10 . 16 . Total Orders . | . . . . . . . . . Ally Attacks 70 | . . . . 24 46 . . . Total Damage 473 | . . . . 250 223 . . . Kills 12 | . . . . 2 10 . . . Allies Corrupted . | . . . . . . . . . Allies Melted . | . . . . . . . . . Intel | -11 -10 -9 -9 -9 -9 -7 -7 -7 ------- Run | Scr Mat Mat Sto Gar Rec Fac Gar Fac Robot Analysis Total . | . . . . . . . . . Derelict Logs Recovered . | . . . . . . . . . Drone Launches . | . . . . . . . . . Drone Recoveries . | . . . . . . . . . Exploration | -11 -10 -9 -9 -9 -9 -7 -7 -7 ------------- Run | Scr Mat Mat Sto Gar Rec Fac Gar Fac Turns Passed 6131 | 117 315 1517 911 1546 377 257 851 240 Spaces Moved 2742 | 55 185 740 330 610 183 105 398 136 Core 134 | 4 . . . . . 8 114 8 Treads 1524 | . . 304 330 610 183 97 . . Legs 322 | . . . . . . . 284 38 Wheels 672 | 51 185 436 . . . . . . Hover . | . . . . . . . . . Flight 90 | . . . . . . . . 90 Fastest Speed 50 | 50 80 100 190 190 190 190 150 50 Average Speed 165 | 80 88 146 190 190 190 196 175 144 Slowest Speed 750 | 90 100 210 210 190 190 250 750 300 Overloaded Moves . | . . . . . . . . . Propulsion Burnouts . | . . . . . . . . . Robots Hopped . | . . . . . . . . . Cave-ins Triggered . | . . . . . . . . . Exploration Rate (%) 38 | 5 40 60 56 69 44 2 62 7 Regions Visited 8 Branch Regions 2 Pre-discovered Areas 3 | . . . . . 3 . . . Known Exits Taken 3 | . . . 1 . 1 1 . . Unknown Exits Taken 3 | 1 1 1 . . . . . . Scrap Searched . | . . . . . . . . . Spaces Dug 2 | . . . 2 . . . . . Terrain Destroyed 281 | . . 71 19 91 11 8 81 . Melee . | . . . . . . . . . Projectile 37 | . . . 16 1 11 8 1 . AOE 244 | . . 71 3 90 . . 80 . Actions | -11 -10 -9 -9 -9 -9 -7 -7 -7 --------- Run | Scr Mat Mat Sto Gar Rec Fac Gar Fac Total 3803 | 101 282 1007 513 885 199 133 502 181 Wait 488 | 14 37 114 114 172 10 12 11 4 Move 2732 | 54 184 739 329 608 182 104 396 136 Hop . | . . . . . . . . . Pick Up 97 | 12 7 32 8 12 . 2 13 11 Fast Attach . | . . . . . . . . . Attach 56 | 7 3 12 5 7 . 4 13 5 Detach 2 | . . . . . . . . 2 Swap 41 | . 2 16 5 9 1 . 3 5 Drop 37 | . 2 12 4 4 . . 1 14 Fire 288 | 13 47 82 47 50 6 10 33 . Melee 10 | . . . . 5 . . 1 4 Ram 1 | 1 . . . . . . . . Kick . | . . . . . . . . . Crush 2 | . . . 1 . . 1 . . Escape Stasis 43 | . . . . 18 . . 25 . Rewire . | . . . . . . . . . Trap 6 | . . . . . . . 6 . Miscellaneous . | . . . . . . . . . Route ------- -11/Scrapyard -10/Materials -9/Materials (discovered 3 exits: [*Mat] / [*Min] / *Sto) -9/Storage -9/Garrison (discovered 3 exits: *Rec x3) -9/Recycling -7/Factory -7/Garrison (discovered 2 exits: [*Fac x2]) -7/Factory (discovered 1 exit: [Low]) History --------- Turn | Location | Event 17 | -11/Scrapyard | Discovered new exit (range 15) 118 | -11/Scrapyard | Entered Materials 289 | -10/Materials | Lost 3 parts (1p1n1w) 311 | -10/Materials | Build established: Mutant 320 | -10/Materials | Discovered new exit (range 13) 433 | -10/Materials | Entered another Materials area 433 | -9/Materials | Evolved 2 slots: Utility x1, Weapon x1 1012 | -9/Materials | Discovered new exit (range 16) 1244 | -9/Materials | Lost 3 parts (1u2w) 1395 | -9/Materials | Discovered new exit (range 15) 1623 | -9/Materials | Build established: Tank 1870 | -9/Materials | Discovered new exit (range 14) 1950 | -9/Materials | Entered Storage 2140 | -9/Storage | Lost 3 parts (1p2w) 2733 | -9/Storage | Core integrity fell below 50% 2806 | -9/Storage | Build established: Gunner 2813 | -9/Storage | Garrison activated, responded to threat 2859 | -9/Storage | Identified exit to Garrison 2861 | -9/Storage | Entered Garrison 2875 | -9/Garrison | Lost 5 parts (1p1n3w) 2943 | -9/Garrison | Triggered checkpoint 3084 | -9/Garrison | Triggered checkpoint 3174 | -9/Garrison | Garrison Relay disabled 3299 | -9/Garrison | Discovered new exit (range 13) 3413 | -9/Garrison | Triggered checkpoint 3468 | -9/Garrison | Triggered checkpoint 3525 | -9/Garrison | Discovered new exit (range 13) 3688 | -9/Garrison | Discovered new exit (range 13) 3723 | -9/Garrison | Installed Relay Interface Framework 4254 | -9/Garrison | Core integrity fell below 20% 4305 | -9/Garrison | Garrison Relay disabled 4407 | -9/Garrison | Entered Recycling 4407 | -9/Recycling | Accompanied by 2 allies 4442 | -9/Recycling | Spotter reported a threat 4442 | -9/Recycling | Spotter reported a threat 4458 | -9/Recycling | Spotter reported a threat 4463 | -9/Recycling | Spotter reported a threat 4471 | -9/Recycling | Spotter reported a threat 4482 | -9/Recycling | Spotter reported a threat 4495 | -9/Recycling | Spotter reported a threat 4495 | -9/Recycling | Spotter reported a threat 4507 | -9/Recycling | Spotter reported a threat 4516 | -9/Recycling | Spotter reported a threat 4535 | -9/Recycling | Spotter reported a threat 4548 | -9/Recycling | Spotter reported a threat 4560 | -9/Recycling | Spotter reported a threat 4564 | -9/Recycling | Spotter reported a threat 4569 | -9/Recycling | Spotter reported a threat 4574 | -9/Recycling | Spotter reported a threat 4614 | -9/Recycling | Spotter reported a threat 4619 | -9/Recycling | Identified exit to Factory 4622 | -9/Recycling | Spotter reported a threat 4647 | -9/Recycling | Spotter reported a threat 4647 | -9/Recycling | Spotter reported a threat 4693 | -9/Recycling | Spotter reported a threat 4749 | -9/Recycling | Build established: Bothacker-Gunner 4750 | -9/Recycling | Spotter reported a threat 4750 | -9/Recycling | Spotter reported a threat 4751 | -9/Recycling | Spotter reported a threat 4784 | -9/Recycling | Entered Factory 4784 | -7/Factory | Evolved 4 slots: Propulsion x1, Utility x3 4813 | -7/Factory | Garrison activated, responded to threat 5012 | -7/Factory | Lost 3 parts (1n2u) 5039 | -7/Factory | Identified exit to Garrison 5041 | -7/Factory | Entered Garrison 5069 | -7/Garrison | Lost 3 parts (1n1u1w) 5088 | -7/Garrison | Triggered checkpoint 5154 | -7/Garrison | Garrison Relay disabled 5236 | -7/Garrison | Triggered checkpoint 5243 | -7/Garrison | Triggered checkpoint 5270 | -7/Garrison | Core integrity fell below 50% 5310 | -7/Garrison | Build established: Bothacker-Mutant 5353 | -7/Garrison | Triggered checkpoint 5394 | -7/Garrison | Lost 3 parts (3w) 5521 | -7/Garrison | Discovered new exit (range 15) 5701 | -7/Garrison | Lost 3 parts (1n2w) 5780 | -7/Garrison | Triggered checkpoint 5787 | -7/Garrison | Discovered new exit (range 10) 5811 | -7/Garrison | Expanded RIF knowledge: Coupler Efficiency 5892 | -7/Garrison | Entered Factory 6091 | -7/Factory | Discovered new exit (range 41) 6105 | -7/Factory | Core integrity fell below 20% 6114 | -7/Factory | System corruption reached 10% 6132 | -7/Factory | Destroyed by S-27 Virus with Autogun Last Messages --------------- 06112_ Dropped Relay Coupler [Grunt]. 06112_ Acquired Relay Coupler [Swarmer]. 06112_ Xenon Bombardment Thruster destroyed. 06113_ Relay Coupler [NC] destroyed. 06113_ Shock Rifle destroyed. 06113_ System corrupted by crushing effect (+3). 06113_ Adv. Weight Redist. System destroyed. 06113_ Dropped Relay Coupler [Swarmer]. 06114_ Dropped Lrg. Storage Unit. 06114_ Dropped Xenon Bombardment Thruster. 06115_ Dropped Com. Ion Cannon. 06118_ System corrupted: Component data lost. 06121_ R-06 Scavenger collects Xenon Bombardment Thruster. 06122_ Adv. Sensor Array destroyed. 06125_ K-01 Serf cleans the Nuclear Reactor. 06125_ R-06 Scavenger collects Greatsword. 06129_ Targeting Computer destroyed. 06129_ System corrupted by crushing effect (+1). 06129_ Knocked back. 06130_ Dropped Lrg. Storage Unit. Map ----- +----------------------------------------------------+ | ????????????? ### #?????# | | ????????????? ### ################### | | ????????????? # # ///#???????# | | ????????????? # # ///#???????####### | | ???????????????????# / ! // #?????????????? | | ???????????????????# # #?????????????? | | ???????????????????# # " " ""? #?????????????? | | ???????????????????# # "G" "???#?????????????? | | ???????????????????# # """ "?????????????????? | | ???????????????????# # ???????????????? | | #??????????????????# ##########??????????????? | | #??????????????????# #########???????????????? | | #??#####???????????# # ????????????????? | | #? """"???????????# # ????????????????? | | #? """"" #????????# # ????????????????? | | # """ #????????# # ! !????????????????? | | # ] #????????# # ????????????????? | | + #???? ?# # "" ??????????????????? | | # #?? ?# + "" ??????????????????? | | # # ?# # ""? ??????????????????? | | # # ## # ""? ??????????????????? | | ##+######## ## # ""? ??????????????????? | | ?# #??????# ## # ??????????????????? | | ?# #??????# ## ###############?????????? | | ?# #??????# ## #?????????? | | ?# #??????# ## @ u #?????????? | | ?# #??????# ## #?????????? | | ?# #??????# ## !!] u #?????????? | | ?# #??????# ## !su!g #?????????? | | ##+######## ###########/#### #?????????? | | # # b # ########??? | | # # # """" #??? | | # # !! #] ""F" #### | | / + !! +!! | | """""" # # ! #! """ """ #### | | """""" # # #! """ """ #??? | | """""" # # # """ """ #??? | | """""" # ################ #### | | ###########+##+########????!! # """ """ | | ?????# / #??!! ! # """ """ | | ?????# #??! + """ """ | | ?????# #?? = # | | ?????# #?? # | | ?????# [ #?? ################# | | ?????# """ """ """ #??? "" #?????????? | | ?????# """ """ """ #?????? #?????????? | | ?????# """ """ """ #????? #?????????? | | ?????#################???????###?#?????????? | | ???????????????????????????????????????????? | | ???????????????????????????????????????????? | +----------------------------------------------------+ Best States ------------- Heat Dissipation 42 Energy Generation 14 Energy Capacity 265 Matter Stores 300 Matter Capacity 300 Sight Range 16 Robot Scan Range 16 Terrain Scan Range 16 Terrain Scan Density 10 Additional Mass Support 9 Armor Coverage 225 Evasion (%) 44 Targeting Accuracy 5 Core Analysis 6 Recoil Reduction 4 Item Schematics ----------------- Lrg. Storage Unit | -9/Materials | Scanalyzed Hcp. Storage Unit | -9/Materials | Hacked Arm. Treads | -9/Materials | Scanalyzed Robot Schematics ------------------ None Fabricated ------------ Nothing Alien Tech Used ----------------- None Achievements -------------- Hehehe Challenges ------------ None Game ------ Seed FlakNovaScanner Manual? 0 Play Time 00:56:11 Cumulative 187.1 hours Start 2019.11.23 @ 21:24:08 End 2019.11.23 @ 22:19:02 Sessions 1 Manual Loads 0 Difficulty Rogue Special Mode None Game No. 257 Rogue 257 Adventurer 0 Explorer 0 Win Type - Total 1 Types 1/0/0/0/0/0/0 Lore% 51 Gallery% 71 Achievement% 48 Wizard Run 0 Options --------- ASCII 0 Keyboard 0 Movement Numpad Keybinds 0 Fullscreen 1 Font 16/Terminus Map View 75x55 Tactical HUD 1 Map Filters NONE Filters NONE Steam 1 RUN: ac567840-246e-4d83-8cfc-949905db0d38